{"text_format":"3","workbook":"xlsx","n_sheets":2,"sheets":["Kaalukaotuse jälgija","arvutused"],"not_rendered":{"charts":1,"defined_names":10},"read":"whole","date_system":"1900"}

{"sheet":"Kaalukaotuse jälgija","index":0,"n_rows":19,"n_cols":9,"rows_kept":19,"merged":[[0,3,0,7],[0,8,0,9],[1,3,2,9]]}
[null,"SOOVITUD KAAL","DIAGRAMMI VAADE","Nimi",{"$nulls":4},"KAALULANGUS"]
[{"$nulls":3},"JÄLGIJA"]
[null,{"v":172,"d":"172.0"},"IGANÄDALANE"]
[null,"KUVA SOOVITUD KAAL","Jah"]
[null,"Kaalujälgimise diagramm, mis jälgib selles lahtris olevat praegust kaalu. Valige lahtris C4 „Jah“, et kuvada soovitud kaalu joon üle kihtdiagrammi."]
[]
[null,"KUUPÄEV","KAAL"]
[null,{"$f":"TODAY()-77","v":"2022-01-13"},{"v":176,"d":"176.0"}]
[null,{"$f":"TODAY()-70","v":"2022-01-20"},{"v":176,"d":"176.0"}]
[null,{"$f":"TODAY()-63","v":"2022-01-27"},177.6]
[null,{"$f":"TODAY()-56","v":"2022-02-03"},176.5]
[null,{"$f":"TODAY()-49","v":"2022-02-10"},176.1]
[null,{"$f":"TODAY()-42","v":"2022-02-17"},{"v":174,"d":"174.0"}]
[null,{"$f":"TODAY()-35","v":"2022-02-24"},173.5]
[null,{"$f":"TODAY()-28","v":"2022-03-03"},{"v":173,"d":"173.0"}]
[null,{"$f":"TODAY()-21","v":"2022-03-10"},{"v":172,"d":"172.0"}]
[null,{"$f":"TODAY()-14","v":"2022-03-17"},{"v":172,"d":"172.0"}]
[null,{"$f":"TODAY()-7","v":"2022-03-24"},{"v":173,"d":"173.0"}]
[null,{"$f":"TODAY()","v":"2022-03-31"},{"v":172,"d":"172.0"}]

{"sheet":"arvutused","index":1,"n_rows":107,"n_cols":17,"rows_kept":107,"hidden":true}
["*** Leht, mis peaks jääma peidetuks***"]
[]
[{"$f":"COUNTIF(A5:A107,FALSE)","v":12},"Perioodid","Väärtused",{"$nulls":3},{"$f":"COUNTIF(H5:H28,\">\"&0)","v":3},"Perioodid",null,"Väärtused"]
[null,"Nädal",null,null,{"$f":"IFERROR(IF(KuvaSoovitudKaal=\"Jah\", TRUE, FALSE),FALSE)","v":true},null,null,"Kuu","Kuulõpp"]
[{"$f":"FALSE","v":false},{"$f":"IFERROR(IF(LEN('Kaalukaotuse jälgija'!$B8)=0,TODAY(),'Kaalukaotuse jälgija'!$B8),TODAY())","v":"2022-01-13"},{"$f":"IFERROR(IF(LEN('Kaalukaotuse jälgija'!$C8)=0,SoovitudKaal,'Kaalukaotuse jälgija'!$C8),0)","v":176},{"$f":"IFERROR(IF(MIN(DiagrammiAjavahemikud)=0,TODAY(),MIN(DiagrammiAjavahemikud)),TODAY())","v":"2022-01-13"},{"$f":"IFERROR(IF($A$5,0,IF($E$4,SoovitudKaal,NA())),0)","v":172},null,null,{"$f":"IFERROR(IF($A$5,TODAY(),DATE(YEAR($B5),MONTH($B5),1)),\"\")","v":"2022-01-01"},{"$f":"IFERROR(IF($A$5,TODAY(),EOMONTH($H5,0)),\"\")","v":"2022-01-31"},{"$f":"IFERROR(IF($A$5,0,AVERAGEIFS(Kaal[KAAL],Kaal[KUUPÄEV],\">=\"&$H5,Kaal[KUUPÄEV],\"<=\"&$I5)),NA())","v":176.53333333333333}]
[{"$f":"IF((LEN('Kaalukaotuse jälgija'!$C9)=0),TRUE)","v":false},{"$f":"IFERROR(IF(A6,0,IF(LEN('Kaalukaotuse jälgija'!$B9)=0,0,'Kaalukaotuse jälgija'!$B9)),\"\")","v":"2022-01-20"},{"$f":"IFERROR(IF(A6,0,IF(LEN('Kaalukaotuse jälgija'!$C9)=0,0,'Kaalukaotuse jälgija'!$C9)),\"\")","v":176},{"$f":"IFERROR(IF(MAX(DiagrammiAjavahemikud)=0,TODAY(),MAX(DiagrammiAjavahemikud)),TODAY())","v":"2022-03-31"},{"$f":"IFERROR(IF($A$5,0,IF($E$4,SoovitudKaal,NA())),0)","v":172},null,null,{"$f":"IF($I5+1>MAX($B:$B),NA(),$I5+1)","v":"2022-02-01"},{"$f":"EOMONTH($H6,0)","v":"2022-02-28"},{"$f":"IFERROR(AVERAGEIFS(Kaal[KAAL],Kaal[KUUPÄEV],\">=\"&$H6,Kaal[KUUPÄEV],\"<=\"&$I6),NA())","v":175.025}]
[{"$f":"IF((LEN('Kaalukaotuse jälgija'!$C10)=0),TRUE)","v":false},{"$f":"IFERROR(IF(A7,0,IF(LEN('Kaalukaotuse jälgija'!$B10)=0,0,'Kaalukaotuse jälgija'!$B10)),\"\")","v":"2022-01-27"},{"$f":"IFERROR(IF(A7,0,IF(LEN('Kaalukaotuse jälgija'!$C10)=0,0,'Kaalukaotuse jälgija'!$C10)),\"\")","v":177.6},{"$nulls":4},"2022-03-01","2022-03-31",{"$f":"IFERROR(AVERAGEIFS(Kaal[KAAL],Kaal[KUUPÄEV],\">=\"&$H7,Kaal[KUUPÄEV],\"<=\"&$I7),NA())","v":172.4}]
[{"$f":"IF((LEN('Kaalukaotuse jälgija'!$C11)=0),TRUE)","v":false},{"$f":"IFERROR(IF(A8,0,IF(LEN('Kaalukaotuse jälgija'!$B11)=0,0,'Kaalukaotuse jälgija'!$B11)),\"\")","v":"2022-02-03"},{"$f":"IFERROR(IF(A8,0,IF(LEN('Kaalukaotuse jälgija'!$C11)=0,0,'Kaalukaotuse jälgija'!$C11)),\"\")","v":176.5},{"$nulls":4},{"$error":"#N/A"},{"$error":"#N/A"},{"$f":"IFERROR(AVERAGEIFS(Kaal[KAAL],Kaal[KUUPÄEV],\">=\"&$H8,Kaal[KUUPÄEV],\"<=\"&$I8),NA())","v":{"$error":"#N/A"}}]
[{"$f":"IF((LEN('Kaalukaotuse jälgija'!$C12)=0),TRUE)","v":false},{"$f":"IFERROR(IF(A9,0,IF(LEN('Kaalukaotuse jälgija'!$B12)=0,0,'Kaalukaotuse jälgija'!$B12)),\"\")","v":"2022-02-10"},{"$f":"IFERROR(IF(A9,0,IF(LEN('Kaalukaotuse jälgija'!$C12)=0,0,'Kaalukaotuse jälgija'!$C12)),\"\")","v":176.1},{"$nulls":4},{"$error":"#N/A"},{"$error":"#N/A"},{"$f":"IFERROR(AVERAGEIFS(Kaal[KAAL],Kaal[KUUPÄEV],\">=\"&$H9,Kaal[KUUPÄEV],\"<=\"&$I9),NA())","v":{"$error":"#N/A"}}]
[{"$f":"IF((LEN('Kaalukaotuse jälgija'!$C13)=0),TRUE)","v":false},{"$f":"IFERROR(IF(A10,0,IF(LEN('Kaalukaotuse jälgija'!$B13)=0,0,'Kaalukaotuse jälgija'!$B13)),\"\")","v":"2022-02-17"},{"$f":"IFERROR(IF(A10,0,IF(LEN('Kaalukaotuse jälgija'!$C13)=0,0,'Kaalukaotuse jälgija'!$C13)),\"\")","v":174},{"$nulls":4},{"$error":"#N/A"},{"$error":"#N/A"},{"$f":"IFERROR(AVERAGEIFS(Kaal[KAAL],Kaal[KUUPÄEV],\">=\"&$H10,Kaal[KUUPÄEV],\"<=\"&$I10),NA())","v":{"$error":"#N/A"}}]
[{"$f":"IF((LEN('Kaalukaotuse jälgija'!$C14)=0),TRUE)","v":false},{"$f":"IFERROR(IF(A11,0,IF(LEN('Kaalukaotuse jälgija'!$B14)=0,0,'Kaalukaotuse jälgija'!$B14)),\"\")","v":"2022-02-24"},{"$f":"IFERROR(IF(A11,0,IF(LEN('Kaalukaotuse jälgija'!$C14)=0,0,'Kaalukaotuse jälgija'!$C14)),\"\")","v":173.5},{"$nulls":4},{"$error":"#N/A"},{"$error":"#N/A"},{"$f":"IFERROR(AVERAGEIFS(Kaal[KAAL],Kaal[KUUPÄEV],\">=\"&$H11,Kaal[KUUPÄEV],\"<=\"&$I11),NA())","v":{"$error":"#N/A"}},{"$nulls":6},{"$f":"MAX($B:$B)","v":"2022-03-31"}]
[{"$f":"IF((LEN('Kaalukaotuse jälgija'!$C15)=0),TRUE)","v":false},{"$f":"IFERROR(IF(A12,0,IF(LEN('Kaalukaotuse jälgija'!$B15)=0,0,'Kaalukaotuse jälgija'!$B15)),\"\")","v":"2022-03-03"},{"$f":"IFERROR(IF(A12,0,IF(LEN('Kaalukaotuse jälgija'!$C15)=0,0,'Kaalukaotuse jälgija'!$C15)),\"\")","v":173},{"$nulls":4},{"$error":"#N/A"},{"$error":"#N/A"},{"$f":"IFERROR(AVERAGEIFS(Kaal[KAAL],Kaal[KUUPÄEV],\">=\"&$H12,Kaal[KUUPÄEV],\"<=\"&$I12),NA())","v":{"$error":"#N/A"}}]
[{"$f":"IF((LEN('Kaalukaotuse jälgija'!$C16)=0),TRUE)","v":false},{"$f":"IFERROR(IF(A13,0,IF(LEN('Kaalukaotuse jälgija'!$B16)=0,0,'Kaalukaotuse jälgija'!$B16)),\"\")","v":"2022-03-10"},{"$f":"IFERROR(IF(A13,0,IF(LEN('Kaalukaotuse jälgija'!$C16)=0,0,'Kaalukaotuse jälgija'!$C16)),\"\")","v":172},{"$nulls":4},{"$error":"#N/A"},{"$error":"#N/A"},{"$f":"IFERROR(AVERAGEIFS(Kaal[KAAL],Kaal[KUUPÄEV],\">=\"&$H13,Kaal[KUUPÄEV],\"<=\"&$I13),NA())","v":{"$error":"#N/A"}}]
[{"$f":"IF((LEN('Kaalukaotuse jälgija'!$C17)=0),TRUE)","v":false},{"$f":"IFERROR(IF(A14,0,IF(LEN('Kaalukaotuse jälgija'!$B17)=0,0,'Kaalukaotuse jälgija'!$B17)),\"\")","v":"2022-03-17"},{"$f":"IFERROR(IF(A14,0,IF(LEN('Kaalukaotuse jälgija'!$C17)=0,0,'Kaalukaotuse jälgija'!$C17)),\"\")","v":172},{"$nulls":4},{"$error":"#N/A"},{"$error":"#N/A"},{"$f":"IFERROR(AVERAGEIFS(Kaal[KAAL],Kaal[KUUPÄEV],\">=\"&$H14,Kaal[KUUPÄEV],\"<=\"&$I14),NA())","v":{"$error":"#N/A"}}]
[{"$f":"IF((LEN('Kaalukaotuse jälgija'!$C18)=0),TRUE)","v":false},{"$f":"IFERROR(IF(A15,0,IF(LEN('Kaalukaotuse jälgija'!$B18)=0,0,'Kaalukaotuse jälgija'!$B18)),\"\")","v":"2022-03-24"},{"$f":"IFERROR(IF(A15,0,IF(LEN('Kaalukaotuse jälgija'!$C18)=0,0,'Kaalukaotuse jälgija'!$C18)),\"\")","v":173},{"$nulls":4},{"$error":"#N/A"},{"$error":"#N/A"},{"$f":"IFERROR(AVERAGEIFS(Kaal[KAAL],Kaal[KUUPÄEV],\">=\"&$H15,Kaal[KUUPÄEV],\"<=\"&$I15),NA())","v":{"$error":"#N/A"}}]
[{"$f":"IF((LEN('Kaalukaotuse jälgija'!$C19)=0),TRUE)","v":false},{"$f":"IFERROR(IF(A16,0,IF(LEN('Kaalukaotuse jälgija'!$B19)=0,0,'Kaalukaotuse jälgija'!$B19)),\"\")","v":"2022-03-31"},{"$f":"IFERROR(IF(A16,0,IF(LEN('Kaalukaotuse jälgija'!$C19)=0,0,'Kaalukaotuse jälgija'!$C19)),\"\")","v":172},{"$nulls":4},{"$error":"#N/A"},{"$error":"#N/A"},{"$f":"IFERROR(AVERAGEIFS(Kaal[KAAL],Kaal[KUUPÄEV],\">=\"&$H16,Kaal[KUUPÄEV],\"<=\"&$I16),NA())","v":{"$error":"#N/A"}}]
[{"$f":"IF((LEN('Kaalukaotuse jälgija'!$C20)=0),TRUE)","v":true},{"$f":"IFERROR(IF(A17,0,IF(LEN('Kaalukaotuse jälgija'!$B20)=0,0,'Kaalukaotuse jälgija'!$B20)),\"\")","v":"00:00:00"},{"$f":"IFERROR(IF(A17,0,IF(LEN('Kaalukaotuse jälgija'!$C20)=0,0,'Kaalukaotuse jälgija'!$C20)),\"\")","v":0},{"$nulls":4},{"$error":"#N/A"},{"$error":"#N/A"},{"$f":"IFERROR(AVERAGEIFS(Kaal[KAAL],Kaal[KUUPÄEV],\">=\"&$H17,Kaal[KUUPÄEV],\"<=\"&$I17),NA())","v":{"$error":"#N/A"}}]
[{"$f":"IF((LEN('Kaalukaotuse jälgija'!$C21)=0),TRUE)","v":true},{"$f":"IFERROR(IF(A18,0,IF(LEN('Kaalukaotuse jälgija'!$B21)=0,0,'Kaalukaotuse jälgija'!$B21)),\"\")","v":"00:00:00"},{"$f":"IFERROR(IF(A18,0,IF(LEN('Kaalukaotuse jälgija'!$C21)=0,0,'Kaalukaotuse jälgija'!$C21)),\"\")","v":0},{"$nulls":4},{"$error":"#N/A"},{"$error":"#N/A"},{"$f":"IFERROR(AVERAGEIFS(Kaal[KAAL],Kaal[KUUPÄEV],\">=\"&$H18,Kaal[KUUPÄEV],\"<=\"&$I18),NA())","v":{"$error":"#N/A"}}]
[{"$f":"IF((LEN('Kaalukaotuse jälgija'!$C22)=0),TRUE)","v":true},{"$f":"IFERROR(IF(A19,0,IF(LEN('Kaalukaotuse jälgija'!$B22)=0,0,'Kaalukaotuse jälgija'!$B22)),\"\")","v":"00:00:00"},{"$f":"IFERROR(IF(A19,0,IF(LEN('Kaalukaotuse jälgija'!$C22)=0,0,'Kaalukaotuse jälgija'!$C22)),\"\")","v":0},{"$nulls":4},{"$error":"#N/A"},{"$error":"#N/A"},{"$f":"IFERROR(AVERAGEIFS(Kaal[KAAL],Kaal[KUUPÄEV],\">=\"&$H19,Kaal[KUUPÄEV],\"<=\"&$I19),NA())","v":{"$error":"#N/A"}}]
[{"$f":"IF((LEN('Kaalukaotuse jälgija'!$C23)=0),TRUE)","v":true},{"$f":"IFERROR(IF(A20,0,IF(LEN('Kaalukaotuse jälgija'!$B23)=0,0,'Kaalukaotuse jälgija'!$B23)),\"\")","v":"00:00:00"},{"$f":"IFERROR(IF(A20,0,IF(LEN('Kaalukaotuse jälgija'!$C23)=0,0,'Kaalukaotuse jälgija'!$C23)),\"\")","v":0},{"$nulls":4},{"$error":"#N/A"},{"$error":"#N/A"},{"$f":"IFERROR(AVERAGEIFS(Kaal[KAAL],Kaal[KUUPÄEV],\">=\"&$H20,Kaal[KUUPÄEV],\"<=\"&$I20),NA())","v":{"$error":"#N/A"}}]
[{"$f":"IF((LEN('Kaalukaotuse jälgija'!$C24)=0),TRUE)","v":true},{"$f":"IFERROR(IF(A21,0,IF(LEN('Kaalukaotuse jälgija'!$B24)=0,0,'Kaalukaotuse jälgija'!$B24)),\"\")","v":"00:00:00"},{"$f":"IFERROR(IF(A21,0,IF(LEN('Kaalukaotuse jälgija'!$C24)=0,0,'Kaalukaotuse jälgija'!$C24)),\"\")","v":0},{"$nulls":4},{"$error":"#N/A"},{"$error":"#N/A"},{"$f":"IFERROR(AVERAGEIFS(Kaal[KAAL],Kaal[KUUPÄEV],\">=\"&$H21,Kaal[KUUPÄEV],\"<=\"&$I21),NA())","v":{"$error":"#N/A"}}]
[{"$f":"IF((LEN('Kaalukaotuse jälgija'!$C25)=0),TRUE)","v":true},{"$f":"IFERROR(IF(A22,0,IF(LEN('Kaalukaotuse jälgija'!$B25)=0,0,'Kaalukaotuse jälgija'!$B25)),\"\")","v":"00:00:00"},{"$f":"IFERROR(IF(A22,0,IF(LEN('Kaalukaotuse jälgija'!$C25)=0,0,'Kaalukaotuse jälgija'!$C25)),\"\")","v":0},{"$nulls":4},{"$error":"#N/A"},{"$error":"#N/A"},{"$f":"IFERROR(AVERAGEIFS(Kaal[KAAL],Kaal[KUUPÄEV],\">=\"&$H22,Kaal[KUUPÄEV],\"<=\"&$I22),NA())","v":{"$error":"#N/A"}}]
[{"$f":"IF((LEN('Kaalukaotuse jälgija'!$C26)=0),TRUE)","v":true},{"$f":"IFERROR(IF(A23,0,IF(LEN('Kaalukaotuse jälgija'!$B26)=0,0,'Kaalukaotuse jälgija'!$B26)),\"\")","v":"00:00:00"},{"$f":"IFERROR(IF(A23,0,IF(LEN('Kaalukaotuse jälgija'!$C26)=0,0,'Kaalukaotuse jälgija'!$C26)),\"\")","v":0},{"$nulls":4},{"$error":"#N/A"},{"$error":"#N/A"},{"$f":"IFERROR(AVERAGEIFS(Kaal[KAAL],Kaal[KUUPÄEV],\">=\"&$H23,Kaal[KUUPÄEV],\"<=\"&$I23),NA())","v":{"$error":"#N/A"}}]
[{"$f":"IF((LEN('Kaalukaotuse jälgija'!$C27)=0),TRUE)","v":true},{"$f":"IFERROR(IF(A24,0,IF(LEN('Kaalukaotuse jälgija'!$B27)=0,0,'Kaalukaotuse jälgija'!$B27)),\"\")","v":"00:00:00"},{"$f":"IFERROR(IF(A24,0,IF(LEN('Kaalukaotuse jälgija'!$C27)=0,0,'Kaalukaotuse jälgija'!$C27)),\"\")","v":0},{"$nulls":4},{"$error":"#N/A"},{"$error":"#N/A"},{"$f":"IFERROR(AVERAGEIFS(Kaal[KAAL],Kaal[KUUPÄEV],\">=\"&$H24,Kaal[KUUPÄEV],\"<=\"&$I24),NA())","v":{"$error":"#N/A"}}]
[{"$f":"IF((LEN('Kaalukaotuse jälgija'!$C28)=0),TRUE)","v":true},{"$f":"IFERROR(IF(A25,0,IF(LEN('Kaalukaotuse jälgija'!$B28)=0,0,'Kaalukaotuse jälgija'!$B28)),\"\")","v":"00:00:00"},{"$f":"IFERROR(IF(A25,0,IF(LEN('Kaalukaotuse jälgija'!$C28)=0,0,'Kaalukaotuse jälgija'!$C28)),\"\")","v":0},{"$nulls":4},{"$error":"#N/A"},{"$error":"#N/A"},{"$f":"IFERROR(AVERAGEIFS(Kaal[KAAL],Kaal[KUUPÄEV],\">=\"&$H25,Kaal[KUUPÄEV],\"<=\"&$I25),NA())","v":{"$error":"#N/A"}}]
[{"$f":"IF((LEN('Kaalukaotuse jälgija'!$C29)=0),TRUE)","v":true},{"$f":"IFERROR(IF(A26,0,IF(LEN('Kaalukaotuse jälgija'!$B29)=0,0,'Kaalukaotuse jälgija'!$B29)),\"\")","v":"00:00:00"},{"$f":"IFERROR(IF(A26,0,IF(LEN('Kaalukaotuse jälgija'!$C29)=0,0,'Kaalukaotuse jälgija'!$C29)),\"\")","v":0},{"$nulls":4},{"$error":"#N/A"},{"$error":"#N/A"},{"$f":"IFERROR(AVERAGEIFS(Kaal[KAAL],Kaal[KUUPÄEV],\">=\"&$H26,Kaal[KUUPÄEV],\"<=\"&$I26),NA())","v":{"$error":"#N/A"}}]
[{"$f":"IF((LEN('Kaalukaotuse jälgija'!$C30)=0),TRUE)","v":true},{"$f":"IFERROR(IF(A27,0,IF(LEN('Kaalukaotuse jälgija'!$B30)=0,0,'Kaalukaotuse jälgija'!$B30)),\"\")","v":"00:00:00"},{"$f":"IFERROR(IF(A27,0,IF(LEN('Kaalukaotuse jälgija'!$C30)=0,0,'Kaalukaotuse jälgija'!$C30)),\"\")","v":0},{"$nulls":4},{"$error":"#N/A"},{"$error":"#N/A"},{"$f":"IFERROR(AVERAGEIFS(Kaal[KAAL],Kaal[KUUPÄEV],\">=\"&$H27,Kaal[KUUPÄEV],\"<=\"&$I27),NA())","v":{"$error":"#N/A"}}]
[{"$f":"IF((LEN('Kaalukaotuse jälgija'!$C31)=0),TRUE)","v":true},{"$f":"IFERROR(IF(A28,0,IF(LEN('Kaalukaotuse jälgija'!$B31)=0,0,'Kaalukaotuse jälgija'!$B31)),\"\")","v":"00:00:00"},{"$f":"IFERROR(IF(A28,0,IF(LEN('Kaalukaotuse jälgija'!$C31)=0,0,'Kaalukaotuse jälgija'!$C31)),\"\")","v":0},{"$nulls":4},{"$error":"#N/A"},{"$error":"#N/A"},{"$f":"IFERROR(AVERAGEIFS(Kaal[KAAL],Kaal[KUUPÄEV],\">=\"&$H28,Kaal[KUUPÄEV],\"<=\"&$I28),NA())","v":{"$error":"#N/A"}}]
[{"$f":"IF((LEN('Kaalukaotuse jälgija'!$C32)=0),TRUE)","v":true},{"$f":"IFERROR(IF(A29,0,IF(LEN('Kaalukaotuse jälgija'!$B32)=0,0,'Kaalukaotuse jälgija'!$B32)),\"\")","v":"00:00:00"},{"$f":"IFERROR(IF(A29,0,IF(LEN('Kaalukaotuse jälgija'!$C32)=0,0,'Kaalukaotuse jälgija'!$C32)),\"\")","v":0}]
[{"$f":"IF((LEN('Kaalukaotuse jälgija'!$C33)=0),TRUE)","v":true},{"$f":"IFERROR(IF(A30,0,IF(LEN('Kaalukaotuse jälgija'!$B33)=0,0,'Kaalukaotuse jälgija'!$B33)),\"\")","v":"00:00:00"},{"$f":"IFERROR(IF(A30,0,IF(LEN('Kaalukaotuse jälgija'!$C33)=0,0,'Kaalukaotuse jälgija'!$C33)),\"\")","v":0}]
[{"$f":"IF((LEN('Kaalukaotuse jälgija'!$C34)=0),TRUE)","v":true},{"$f":"IFERROR(IF(A31,0,IF(LEN('Kaalukaotuse jälgija'!$B34)=0,0,'Kaalukaotuse jälgija'!$B34)),\"\")","v":"00:00:00"},{"$f":"IFERROR(IF(A31,0,IF(LEN('Kaalukaotuse jälgija'!$C34)=0,0,'Kaalukaotuse jälgija'!$C34)),\"\")","v":0}]
[{"$f":"IF((LEN('Kaalukaotuse jälgija'!$C35)=0),TRUE)","v":true},{"$f":"IFERROR(IF(A32,0,IF(LEN('Kaalukaotuse jälgija'!$B35)=0,0,'Kaalukaotuse jälgija'!$B35)),\"\")","v":"00:00:00"},{"$f":"IFERROR(IF(A32,0,IF(LEN('Kaalukaotuse jälgija'!$C35)=0,0,'Kaalukaotuse jälgija'!$C35)),\"\")","v":0}]
[{"$f":"IF((LEN('Kaalukaotuse jälgija'!$C36)=0),TRUE)","v":true},{"$f":"IFERROR(IF(A33,0,IF(LEN('Kaalukaotuse jälgija'!$B36)=0,0,'Kaalukaotuse jälgija'!$B36)),\"\")","v":"00:00:00"},{"$f":"IFERROR(IF(A33,0,IF(LEN('Kaalukaotuse jälgija'!$C36)=0,0,'Kaalukaotuse jälgija'!$C36)),\"\")","v":0}]
[{"$f":"IF((LEN('Kaalukaotuse jälgija'!$C37)=0),TRUE)","v":true},{"$f":"IFERROR(IF(A34,0,IF(LEN('Kaalukaotuse jälgija'!$B37)=0,0,'Kaalukaotuse jälgija'!$B37)),\"\")","v":"00:00:00"},{"$f":"IFERROR(IF(A34,0,IF(LEN('Kaalukaotuse jälgija'!$C37)=0,0,'Kaalukaotuse jälgija'!$C37)),\"\")","v":0}]
[{"$f":"IF((LEN('Kaalukaotuse jälgija'!$C38)=0),TRUE)","v":true},{"$f":"IFERROR(IF(A35,0,IF(LEN('Kaalukaotuse jälgija'!$B38)=0,0,'Kaalukaotuse jälgija'!$B38)),\"\")","v":"00:00:00"},{"$f":"IFERROR(IF(A35,0,IF(LEN('Kaalukaotuse jälgija'!$C38)=0,0,'Kaalukaotuse jälgija'!$C38)),\"\")","v":0}]
[{"$f":"IF((LEN('Kaalukaotuse jälgija'!$C39)=0),TRUE)","v":true},{"$f":"IFERROR(IF(A36,0,IF(LEN('Kaalukaotuse jälgija'!$B39)=0,0,'Kaalukaotuse jälgija'!$B39)),\"\")","v":"00:00:00"},{"$f":"IFERROR(IF(A36,0,IF(LEN('Kaalukaotuse jälgija'!$C39)=0,0,'Kaalukaotuse jälgija'!$C39)),\"\")","v":0}]
[{"$f":"IF((LEN('Kaalukaotuse jälgija'!$C40)=0),TRUE)","v":true},{"$f":"IFERROR(IF(A37,0,IF(LEN('Kaalukaotuse jälgija'!$B40)=0,0,'Kaalukaotuse jälgija'!$B40)),\"\")","v":"00:00:00"},{"$f":"IFERROR(IF(A37,0,IF(LEN('Kaalukaotuse jälgija'!$C40)=0,0,'Kaalukaotuse jälgija'!$C40)),\"\")","v":0}]
[{"$f":"IF((LEN('Kaalukaotuse jälgija'!$C41)=0),TRUE)","v":true},{"$f":"IFERROR(IF(A38,0,IF(LEN('Kaalukaotuse jälgija'!$B41)=0,0,'Kaalukaotuse jälgija'!$B41)),\"\")","v":"00:00:00"},{"$f":"IFERROR(IF(A38,0,IF(LEN('Kaalukaotuse jälgija'!$C41)=0,0,'Kaalukaotuse jälgija'!$C41)),\"\")","v":0}]
[{"$f":"IF((LEN('Kaalukaotuse jälgija'!$C42)=0),TRUE)","v":true},{"$f":"IFERROR(IF(A39,0,IF(LEN('Kaalukaotuse jälgija'!$B42)=0,0,'Kaalukaotuse jälgija'!$B42)),\"\")","v":"00:00:00"},{"$f":"IFERROR(IF(A39,0,IF(LEN('Kaalukaotuse jälgija'!$C42)=0,0,'Kaalukaotuse jälgija'!$C42)),\"\")","v":0}]
[{"$f":"IF((LEN('Kaalukaotuse jälgija'!$C43)=0),TRUE)","v":true},{"$f":"IFERROR(IF(A40,0,IF(LEN('Kaalukaotuse jälgija'!$B43)=0,0,'Kaalukaotuse jälgija'!$B43)),\"\")","v":"00:00:00"},{"$f":"IFERROR(IF(A40,0,IF(LEN('Kaalukaotuse jälgija'!$C43)=0,0,'Kaalukaotuse jälgija'!$C43)),\"\")","v":0}]
[{"$f":"IF((LEN('Kaalukaotuse jälgija'!$C44)=0),TRUE)","v":true},{"$f":"IFERROR(IF(A41,0,IF(LEN('Kaalukaotuse jälgija'!$B44)=0,0,'Kaalukaotuse jälgija'!$B44)),\"\")","v":"00:00:00"},{"$f":"IFERROR(IF(A41,0,IF(LEN('Kaalukaotuse jälgija'!$C44)=0,0,'Kaalukaotuse jälgija'!$C44)),\"\")","v":0}]
[{"$f":"IF((LEN('Kaalukaotuse jälgija'!$C45)=0),TRUE)","v":true},{"$f":"IFERROR(IF(A42,0,IF(LEN('Kaalukaotuse jälgija'!$B45)=0,0,'Kaalukaotuse jälgija'!$B45)),\"\")","v":"00:00:00"},{"$f":"IFERROR(IF(A42,0,IF(LEN('Kaalukaotuse jälgija'!$C45)=0,0,'Kaalukaotuse jälgija'!$C45)),\"\")","v":0}]
[{"$f":"IF((LEN('Kaalukaotuse jälgija'!$C46)=0),TRUE)","v":true},{"$f":"IFERROR(IF(A43,0,IF(LEN('Kaalukaotuse jälgija'!$B46)=0,0,'Kaalukaotuse jälgija'!$B46)),\"\")","v":"00:00:00"},{"$f":"IFERROR(IF(A43,0,IF(LEN('Kaalukaotuse jälgija'!$C46)=0,0,'Kaalukaotuse jälgija'!$C46)),\"\")","v":0}]
[{"$f":"IF((LEN('Kaalukaotuse jälgija'!$C47)=0),TRUE)","v":true},{"$f":"IFERROR(IF(A44,0,IF(LEN('Kaalukaotuse jälgija'!$B47)=0,0,'Kaalukaotuse jälgija'!$B47)),\"\")","v":"00:00:00"},{"$f":"IFERROR(IF(A44,0,IF(LEN('Kaalukaotuse jälgija'!$C47)=0,0,'Kaalukaotuse jälgija'!$C47)),\"\")","v":0}]
[{"$f":"IF((LEN('Kaalukaotuse jälgija'!$C48)=0),TRUE)","v":true},{"$f":"IFERROR(IF(A45,0,IF(LEN('Kaalukaotuse jälgija'!$B48)=0,0,'Kaalukaotuse jälgija'!$B48)),\"\")","v":"00:00:00"},{"$f":"IFERROR(IF(A45,0,IF(LEN('Kaalukaotuse jälgija'!$C48)=0,0,'Kaalukaotuse jälgija'!$C48)),\"\")","v":0}]
[{"$f":"IF((LEN('Kaalukaotuse jälgija'!$C49)=0),TRUE)","v":true},{"$f":"IFERROR(IF(A46,0,IF(LEN('Kaalukaotuse jälgija'!$B49)=0,0,'Kaalukaotuse jälgija'!$B49)),\"\")","v":"00:00:00"},{"$f":"IFERROR(IF(A46,0,IF(LEN('Kaalukaotuse jälgija'!$C49)=0,0,'Kaalukaotuse jälgija'!$C49)),\"\")","v":0}]
[{"$f":"IF((LEN('Kaalukaotuse jälgija'!$C50)=0),TRUE)","v":true},{"$f":"IFERROR(IF(A47,0,IF(LEN('Kaalukaotuse jälgija'!$B50)=0,0,'Kaalukaotuse jälgija'!$B50)),\"\")","v":"00:00:00"},{"$f":"IFERROR(IF(A47,0,IF(LEN('Kaalukaotuse jälgija'!$C50)=0,0,'Kaalukaotuse jälgija'!$C50)),\"\")","v":0}]
[{"$f":"IF((LEN('Kaalukaotuse jälgija'!$C51)=0),TRUE)","v":true},{"$f":"IFERROR(IF(A48,0,IF(LEN('Kaalukaotuse jälgija'!$B51)=0,0,'Kaalukaotuse jälgija'!$B51)),\"\")","v":"00:00:00"},{"$f":"IFERROR(IF(A48,0,IF(LEN('Kaalukaotuse jälgija'!$C51)=0,0,'Kaalukaotuse jälgija'!$C51)),\"\")","v":0}]
[{"$f":"IF((LEN('Kaalukaotuse jälgija'!$C52)=0),TRUE)","v":true},{"$f":"IFERROR(IF(A49,0,IF(LEN('Kaalukaotuse jälgija'!$B52)=0,0,'Kaalukaotuse jälgija'!$B52)),\"\")","v":"00:00:00"},{"$f":"IFERROR(IF(A49,0,IF(LEN('Kaalukaotuse jälgija'!$C52)=0,0,'Kaalukaotuse jälgija'!$C52)),\"\")","v":0}]
[{"$f":"IF((LEN('Kaalukaotuse jälgija'!$C53)=0),TRUE)","v":true},{"$f":"IFERROR(IF(A50,0,IF(LEN('Kaalukaotuse jälgija'!$B53)=0,0,'Kaalukaotuse jälgija'!$B53)),\"\")","v":"00:00:00"},{"$f":"IFERROR(IF(A50,0,IF(LEN('Kaalukaotuse jälgija'!$C53)=0,0,'Kaalukaotuse jälgija'!$C53)),\"\")","v":0}]
[{"$f":"IF((LEN('Kaalukaotuse jälgija'!$C54)=0),TRUE)","v":true},{"$f":"IFERROR(IF(A51,0,IF(LEN('Kaalukaotuse jälgija'!$B54)=0,0,'Kaalukaotuse jälgija'!$B54)),\"\")","v":"00:00:00"},{"$f":"IFERROR(IF(A51,0,IF(LEN('Kaalukaotuse jälgija'!$C54)=0,0,'Kaalukaotuse jälgija'!$C54)),\"\")","v":0}]
[{"$f":"IF((LEN('Kaalukaotuse jälgija'!$C55)=0),TRUE)","v":true},{"$f":"IFERROR(IF(A52,0,IF(LEN('Kaalukaotuse jälgija'!$B55)=0,0,'Kaalukaotuse jälgija'!$B55)),\"\")","v":"00:00:00"},{"$f":"IFERROR(IF(A52,0,IF(LEN('Kaalukaotuse jälgija'!$C55)=0,0,'Kaalukaotuse jälgija'!$C55)),\"\")","v":0}]
[{"$f":"IF((LEN('Kaalukaotuse jälgija'!$C56)=0),TRUE)","v":true},{"$f":"IFERROR(IF(A53,0,IF(LEN('Kaalukaotuse jälgija'!$B56)=0,0,'Kaalukaotuse jälgija'!$B56)),\"\")","v":"00:00:00"},{"$f":"IFERROR(IF(A53,0,IF(LEN('Kaalukaotuse jälgija'!$C56)=0,0,'Kaalukaotuse jälgija'!$C56)),\"\")","v":0}]
[{"$f":"IF((LEN('Kaalukaotuse jälgija'!$C57)=0),TRUE)","v":true},{"$f":"IFERROR(IF(A54,0,IF(LEN('Kaalukaotuse jälgija'!$B57)=0,0,'Kaalukaotuse jälgija'!$B57)),\"\")","v":"00:00:00"},{"$f":"IFERROR(IF(A54,0,IF(LEN('Kaalukaotuse jälgija'!$C57)=0,0,'Kaalukaotuse jälgija'!$C57)),\"\")","v":0}]
[{"$f":"IF((LEN('Kaalukaotuse jälgija'!$C58)=0),TRUE)","v":true},{"$f":"IFERROR(IF(A55,0,IF(LEN('Kaalukaotuse jälgija'!$B58)=0,0,'Kaalukaotuse jälgija'!$B58)),\"\")","v":"00:00:00"},{"$f":"IFERROR(IF(A55,0,IF(LEN('Kaalukaotuse jälgija'!$C58)=0,0,'Kaalukaotuse jälgija'!$C58)),\"\")","v":0}]
[{"$f":"IF((LEN('Kaalukaotuse jälgija'!$C59)=0),TRUE)","v":true},{"$f":"IFERROR(IF(A56,0,IF(LEN('Kaalukaotuse jälgija'!$B59)=0,0,'Kaalukaotuse jälgija'!$B59)),\"\")","v":"00:00:00"},{"$f":"IFERROR(IF(A56,0,IF(LEN('Kaalukaotuse jälgija'!$C59)=0,0,'Kaalukaotuse jälgija'!$C59)),\"\")","v":0}]
[{"$f":"IF((LEN('Kaalukaotuse jälgija'!$C60)=0),TRUE)","v":true},{"$f":"IFERROR(IF(A57,0,IF(LEN('Kaalukaotuse jälgija'!$B60)=0,0,'Kaalukaotuse jälgija'!$B60)),\"\")","v":"00:00:00"},{"$f":"IFERROR(IF(A57,0,IF(LEN('Kaalukaotuse jälgija'!$C60)=0,0,'Kaalukaotuse jälgija'!$C60)),\"\")","v":0}]
[{"$f":"IF((LEN('Kaalukaotuse jälgija'!$C61)=0),TRUE)","v":true},{"$f":"IFERROR(IF(A58,0,IF(LEN('Kaalukaotuse jälgija'!$B61)=0,0,'Kaalukaotuse jälgija'!$B61)),\"\")","v":"00:00:00"},{"$f":"IFERROR(IF(A58,0,IF(LEN('Kaalukaotuse jälgija'!$C61)=0,0,'Kaalukaotuse jälgija'!$C61)),\"\")","v":0}]
[{"$f":"IF((LEN('Kaalukaotuse jälgija'!$C62)=0),TRUE)","v":true},{"$f":"IFERROR(IF(A59,0,IF(LEN('Kaalukaotuse jälgija'!$B62)=0,0,'Kaalukaotuse jälgija'!$B62)),\"\")","v":"00:00:00"},{"$f":"IFERROR(IF(A59,0,IF(LEN('Kaalukaotuse jälgija'!$C62)=0,0,'Kaalukaotuse jälgija'!$C62)),\"\")","v":0}]
[{"$f":"IF((LEN('Kaalukaotuse jälgija'!$C63)=0),TRUE)","v":true},{"$f":"IFERROR(IF(A60,0,IF(LEN('Kaalukaotuse jälgija'!$B63)=0,0,'Kaalukaotuse jälgija'!$B63)),\"\")","v":"00:00:00"},{"$f":"IFERROR(IF(A60,0,IF(LEN('Kaalukaotuse jälgija'!$C63)=0,0,'Kaalukaotuse jälgija'!$C63)),\"\")","v":0}]
[{"$f":"IF((LEN('Kaalukaotuse jälgija'!$C64)=0),TRUE)","v":true},{"$f":"IFERROR(IF(A61,0,IF(LEN('Kaalukaotuse jälgija'!$B64)=0,0,'Kaalukaotuse jälgija'!$B64)),\"\")","v":"00:00:00"},{"$f":"IFERROR(IF(A61,0,IF(LEN('Kaalukaotuse jälgija'!$C64)=0,0,'Kaalukaotuse jälgija'!$C64)),\"\")","v":0}]
[{"$f":"IF((LEN('Kaalukaotuse jälgija'!$C65)=0),TRUE)","v":true},{"$f":"IFERROR(IF(A62,0,IF(LEN('Kaalukaotuse jälgija'!$B65)=0,0,'Kaalukaotuse jälgija'!$B65)),\"\")","v":"00:00:00"},{"$f":"IFERROR(IF(A62,0,IF(LEN('Kaalukaotuse jälgija'!$C65)=0,0,'Kaalukaotuse jälgija'!$C65)),\"\")","v":0}]
[{"$f":"IF((LEN('Kaalukaotuse jälgija'!$C66)=0),TRUE)","v":true},{"$f":"IFERROR(IF(A63,0,IF(LEN('Kaalukaotuse jälgija'!$B66)=0,0,'Kaalukaotuse jälgija'!$B66)),\"\")","v":"00:00:00"},{"$f":"IFERROR(IF(A63,0,IF(LEN('Kaalukaotuse jälgija'!$C66)=0,0,'Kaalukaotuse jälgija'!$C66)),\"\")","v":0}]
[{"$f":"IF((LEN('Kaalukaotuse jälgija'!$C67)=0),TRUE)","v":true},{"$f":"IFERROR(IF(A64,0,IF(LEN('Kaalukaotuse jälgija'!$B67)=0,0,'Kaalukaotuse jälgija'!$B67)),\"\")","v":"00:00:00"},{"$f":"IFERROR(IF(A64,0,IF(LEN('Kaalukaotuse jälgija'!$C67)=0,0,'Kaalukaotuse jälgija'!$C67)),\"\")","v":0}]
[{"$f":"IF((LEN('Kaalukaotuse jälgija'!$C68)=0),TRUE)","v":true},{"$f":"IFERROR(IF(A65,0,IF(LEN('Kaalukaotuse jälgija'!$B68)=0,0,'Kaalukaotuse jälgija'!$B68)),\"\")","v":"00:00:00"},{"$f":"IFERROR(IF(A65,0,IF(LEN('Kaalukaotuse jälgija'!$C68)=0,0,'Kaalukaotuse jälgija'!$C68)),\"\")","v":0}]
[{"$f":"IF((LEN('Kaalukaotuse jälgija'!$C69)=0),TRUE)","v":true},{"$f":"IFERROR(IF(A66,0,IF(LEN('Kaalukaotuse jälgija'!$B69)=0,0,'Kaalukaotuse jälgija'!$B69)),\"\")","v":"00:00:00"},{"$f":"IFERROR(IF(A66,0,IF(LEN('Kaalukaotuse jälgija'!$C69)=0,0,'Kaalukaotuse jälgija'!$C69)),\"\")","v":0}]
[{"$f":"IF((LEN('Kaalukaotuse jälgija'!$C70)=0),TRUE)","v":true},{"$f":"IFERROR(IF(A67,0,IF(LEN('Kaalukaotuse jälgija'!$B70)=0,0,'Kaalukaotuse jälgija'!$B70)),\"\")","v":"00:00:00"},{"$f":"IFERROR(IF(A67,0,IF(LEN('Kaalukaotuse jälgija'!$C70)=0,0,'Kaalukaotuse jälgija'!$C70)),\"\")","v":0}]
[{"$f":"IF((LEN('Kaalukaotuse jälgija'!$C71)=0),TRUE)","v":true},{"$f":"IFERROR(IF(A68,0,IF(LEN('Kaalukaotuse jälgija'!$B71)=0,0,'Kaalukaotuse jälgija'!$B71)),\"\")","v":"00:00:00"},{"$f":"IFERROR(IF(A68,0,IF(LEN('Kaalukaotuse jälgija'!$C71)=0,0,'Kaalukaotuse jälgija'!$C71)),\"\")","v":0}]
[{"$f":"IF((LEN('Kaalukaotuse jälgija'!$C72)=0),TRUE)","v":true},{"$f":"IFERROR(IF(A69,0,IF(LEN('Kaalukaotuse jälgija'!$B72)=0,0,'Kaalukaotuse jälgija'!$B72)),\"\")","v":"00:00:00"},{"$f":"IFERROR(IF(A69,0,IF(LEN('Kaalukaotuse jälgija'!$C72)=0,0,'Kaalukaotuse jälgija'!$C72)),\"\")","v":0}]
[{"$f":"IF((LEN('Kaalukaotuse jälgija'!$C73)=0),TRUE)","v":true},{"$f":"IFERROR(IF(A70,0,IF(LEN('Kaalukaotuse jälgija'!$B73)=0,0,'Kaalukaotuse jälgija'!$B73)),\"\")","v":"00:00:00"},{"$f":"IFERROR(IF(A70,0,IF(LEN('Kaalukaotuse jälgija'!$C73)=0,0,'Kaalukaotuse jälgija'!$C73)),\"\")","v":0}]
[{"$f":"IF((LEN('Kaalukaotuse jälgija'!$C74)=0),TRUE)","v":true},{"$f":"IFERROR(IF(A71,0,IF(LEN('Kaalukaotuse jälgija'!$B74)=0,0,'Kaalukaotuse jälgija'!$B74)),\"\")","v":"00:00:00"},{"$f":"IFERROR(IF(A71,0,IF(LEN('Kaalukaotuse jälgija'!$C74)=0,0,'Kaalukaotuse jälgija'!$C74)),\"\")","v":0}]
[{"$f":"IF((LEN('Kaalukaotuse jälgija'!$C75)=0),TRUE)","v":true},{"$f":"IFERROR(IF(A72,0,IF(LEN('Kaalukaotuse jälgija'!$B75)=0,0,'Kaalukaotuse jälgija'!$B75)),\"\")","v":"00:00:00"},{"$f":"IFERROR(IF(A72,0,IF(LEN('Kaalukaotuse jälgija'!$C75)=0,0,'Kaalukaotuse jälgija'!$C75)),\"\")","v":0}]
[{"$f":"IF((LEN('Kaalukaotuse jälgija'!$C76)=0),TRUE)","v":true},{"$f":"IFERROR(IF(A73,0,IF(LEN('Kaalukaotuse jälgija'!$B76)=0,0,'Kaalukaotuse jälgija'!$B76)),\"\")","v":"00:00:00"},{"$f":"IFERROR(IF(A73,0,IF(LEN('Kaalukaotuse jälgija'!$C76)=0,0,'Kaalukaotuse jälgija'!$C76)),\"\")","v":0}]
[{"$f":"IF((LEN('Kaalukaotuse jälgija'!$C77)=0),TRUE)","v":true},{"$f":"IFERROR(IF(A74,0,IF(LEN('Kaalukaotuse jälgija'!$B77)=0,0,'Kaalukaotuse jälgija'!$B77)),\"\")","v":"00:00:00"},{"$f":"IFERROR(IF(A74,0,IF(LEN('Kaalukaotuse jälgija'!$C77)=0,0,'Kaalukaotuse jälgija'!$C77)),\"\")","v":0}]
[{"$f":"IF((LEN('Kaalukaotuse jälgija'!$C78)=0),TRUE)","v":true},{"$f":"IFERROR(IF(A75,0,IF(LEN('Kaalukaotuse jälgija'!$B78)=0,0,'Kaalukaotuse jälgija'!$B78)),\"\")","v":"00:00:00"},{"$f":"IFERROR(IF(A75,0,IF(LEN('Kaalukaotuse jälgija'!$C78)=0,0,'Kaalukaotuse jälgija'!$C78)),\"\")","v":0}]
[{"$f":"IF((LEN('Kaalukaotuse jälgija'!$C79)=0),TRUE)","v":true},{"$f":"IFERROR(IF(A76,0,IF(LEN('Kaalukaotuse jälgija'!$B79)=0,0,'Kaalukaotuse jälgija'!$B79)),\"\")","v":"00:00:00"},{"$f":"IFERROR(IF(A76,0,IF(LEN('Kaalukaotuse jälgija'!$C79)=0,0,'Kaalukaotuse jälgija'!$C79)),\"\")","v":0}]
[{"$f":"IF((LEN('Kaalukaotuse jälgija'!$C80)=0),TRUE)","v":true},{"$f":"IFERROR(IF(A77,0,IF(LEN('Kaalukaotuse jälgija'!$B80)=0,0,'Kaalukaotuse jälgija'!$B80)),\"\")","v":"00:00:00"},{"$f":"IFERROR(IF(A77,0,IF(LEN('Kaalukaotuse jälgija'!$C80)=0,0,'Kaalukaotuse jälgija'!$C80)),\"\")","v":0}]
[{"$f":"IF((LEN('Kaalukaotuse jälgija'!$C81)=0),TRUE)","v":true},{"$f":"IFERROR(IF(A78,0,IF(LEN('Kaalukaotuse jälgija'!$B81)=0,0,'Kaalukaotuse jälgija'!$B81)),\"\")","v":"00:00:00"},{"$f":"IFERROR(IF(A78,0,IF(LEN('Kaalukaotuse jälgija'!$C81)=0,0,'Kaalukaotuse jälgija'!$C81)),\"\")","v":0}]
[{"$f":"IF((LEN('Kaalukaotuse jälgija'!$C82)=0),TRUE)","v":true},{"$f":"IFERROR(IF(A79,0,IF(LEN('Kaalukaotuse jälgija'!$B82)=0,0,'Kaalukaotuse jälgija'!$B82)),\"\")","v":"00:00:00"},{"$f":"IFERROR(IF(A79,0,IF(LEN('Kaalukaotuse jälgija'!$C82)=0,0,'Kaalukaotuse jälgija'!$C82)),\"\")","v":0}]
[{"$f":"IF((LEN('Kaalukaotuse jälgija'!$C83)=0),TRUE)","v":true},{"$f":"IFERROR(IF(A80,0,IF(LEN('Kaalukaotuse jälgija'!$B83)=0,0,'Kaalukaotuse jälgija'!$B83)),\"\")","v":"00:00:00"},{"$f":"IFERROR(IF(A80,0,IF(LEN('Kaalukaotuse jälgija'!$C83)=0,0,'Kaalukaotuse jälgija'!$C83)),\"\")","v":0}]
[{"$f":"IF((LEN('Kaalukaotuse jälgija'!$C84)=0),TRUE)","v":true},{"$f":"IFERROR(IF(A81,0,IF(LEN('Kaalukaotuse jälgija'!$B84)=0,0,'Kaalukaotuse jälgija'!$B84)),\"\")","v":"00:00:00"},{"$f":"IFERROR(IF(A81,0,IF(LEN('Kaalukaotuse jälgija'!$C84)=0,0,'Kaalukaotuse jälgija'!$C84)),\"\")","v":0}]
[{"$f":"IF((LEN('Kaalukaotuse jälgija'!$C85)=0),TRUE)","v":true},{"$f":"IFERROR(IF(A82,0,IF(LEN('Kaalukaotuse jälgija'!$B85)=0,0,'Kaalukaotuse jälgija'!$B85)),\"\")","v":"00:00:00"},{"$f":"IFERROR(IF(A82,0,IF(LEN('Kaalukaotuse jälgija'!$C85)=0,0,'Kaalukaotuse jälgija'!$C85)),\"\")","v":0}]
[{"$f":"IF((LEN('Kaalukaotuse jälgija'!$C86)=0),TRUE)","v":true},{"$f":"IFERROR(IF(A83,0,IF(LEN('Kaalukaotuse jälgija'!$B86)=0,0,'Kaalukaotuse jälgija'!$B86)),\"\")","v":"00:00:00"},{"$f":"IFERROR(IF(A83,0,IF(LEN('Kaalukaotuse jälgija'!$C86)=0,0,'Kaalukaotuse jälgija'!$C86)),\"\")","v":0}]
[{"$f":"IF((LEN('Kaalukaotuse jälgija'!$C87)=0),TRUE)","v":true},{"$f":"IFERROR(IF(A84,0,IF(LEN('Kaalukaotuse jälgija'!$B87)=0,0,'Kaalukaotuse jälgija'!$B87)),\"\")","v":"00:00:00"},{"$f":"IFERROR(IF(A84,0,IF(LEN('Kaalukaotuse jälgija'!$C87)=0,0,'Kaalukaotuse jälgija'!$C87)),\"\")","v":0}]
[{"$f":"IF((LEN('Kaalukaotuse jälgija'!$C88)=0),TRUE)","v":true},{"$f":"IFERROR(IF(A85,0,IF(LEN('Kaalukaotuse jälgija'!$B88)=0,0,'Kaalukaotuse jälgija'!$B88)),\"\")","v":"00:00:00"},{"$f":"IFERROR(IF(A85,0,IF(LEN('Kaalukaotuse jälgija'!$C88)=0,0,'Kaalukaotuse jälgija'!$C88)),\"\")","v":0}]
[{"$f":"IF((LEN('Kaalukaotuse jälgija'!$C89)=0),TRUE)","v":true},{"$f":"IFERROR(IF(A86,0,IF(LEN('Kaalukaotuse jälgija'!$B89)=0,0,'Kaalukaotuse jälgija'!$B89)),\"\")","v":"00:00:00"},{"$f":"IFERROR(IF(A86,0,IF(LEN('Kaalukaotuse jälgija'!$C89)=0,0,'Kaalukaotuse jälgija'!$C89)),\"\")","v":0}]
[{"$f":"IF((LEN('Kaalukaotuse jälgija'!$C90)=0),TRUE)","v":true},{"$f":"IFERROR(IF(A87,0,IF(LEN('Kaalukaotuse jälgija'!$B90)=0,0,'Kaalukaotuse jälgija'!$B90)),\"\")","v":"00:00:00"},{"$f":"IFERROR(IF(A87,0,IF(LEN('Kaalukaotuse jälgija'!$C90)=0,0,'Kaalukaotuse jälgija'!$C90)),\"\")","v":0}]
[{"$f":"IF((LEN('Kaalukaotuse jälgija'!$C91)=0),TRUE)","v":true},{"$f":"IFERROR(IF(A88,0,IF(LEN('Kaalukaotuse jälgija'!$B91)=0,0,'Kaalukaotuse jälgija'!$B91)),\"\")","v":"00:00:00"},{"$f":"IFERROR(IF(A88,0,IF(LEN('Kaalukaotuse jälgija'!$C91)=0,0,'Kaalukaotuse jälgija'!$C91)),\"\")","v":0}]
[{"$f":"IF((LEN('Kaalukaotuse jälgija'!$C92)=0),TRUE)","v":true},{"$f":"IFERROR(IF(A89,0,IF(LEN('Kaalukaotuse jälgija'!$B92)=0,0,'Kaalukaotuse jälgija'!$B92)),\"\")","v":"00:00:00"},{"$f":"IFERROR(IF(A89,0,IF(LEN('Kaalukaotuse jälgija'!$C92)=0,0,'Kaalukaotuse jälgija'!$C92)),\"\")","v":0}]
[{"$f":"IF((LEN('Kaalukaotuse jälgija'!$C93)=0),TRUE)","v":true},{"$f":"IFERROR(IF(A90,0,IF(LEN('Kaalukaotuse jälgija'!$B93)=0,0,'Kaalukaotuse jälgija'!$B93)),\"\")","v":"00:00:00"},{"$f":"IFERROR(IF(A90,0,IF(LEN('Kaalukaotuse jälgija'!$C93)=0,0,'Kaalukaotuse jälgija'!$C93)),\"\")","v":0}]
[{"$f":"IF((LEN('Kaalukaotuse jälgija'!$C94)=0),TRUE)","v":true},{"$f":"IFERROR(IF(A91,0,IF(LEN('Kaalukaotuse jälgija'!$B94)=0,0,'Kaalukaotuse jälgija'!$B94)),\"\")","v":"00:00:00"},{"$f":"IFERROR(IF(A91,0,IF(LEN('Kaalukaotuse jälgija'!$C94)=0,0,'Kaalukaotuse jälgija'!$C94)),\"\")","v":0}]
[{"$f":"IF((LEN('Kaalukaotuse jälgija'!$C95)=0),TRUE)","v":true},{"$f":"IFERROR(IF(A92,0,IF(LEN('Kaalukaotuse jälgija'!$B95)=0,0,'Kaalukaotuse jälgija'!$B95)),\"\")","v":"00:00:00"},{"$f":"IFERROR(IF(A92,0,IF(LEN('Kaalukaotuse jälgija'!$C95)=0,0,'Kaalukaotuse jälgija'!$C95)),\"\")","v":0}]
[{"$f":"IF((LEN('Kaalukaotuse jälgija'!$C96)=0),TRUE)","v":true},{"$f":"IFERROR(IF(A93,0,IF(LEN('Kaalukaotuse jälgija'!$B96)=0,0,'Kaalukaotuse jälgija'!$B96)),\"\")","v":"00:00:00"},{"$f":"IFERROR(IF(A93,0,IF(LEN('Kaalukaotuse jälgija'!$C96)=0,0,'Kaalukaotuse jälgija'!$C96)),\"\")","v":0}]
[{"$f":"IF((LEN('Kaalukaotuse jälgija'!$C97)=0),TRUE)","v":true},{"$f":"IFERROR(IF(A94,0,IF(LEN('Kaalukaotuse jälgija'!$B97)=0,0,'Kaalukaotuse jälgija'!$B97)),\"\")","v":"00:00:00"},{"$f":"IFERROR(IF(A94,0,IF(LEN('Kaalukaotuse jälgija'!$C97)=0,0,'Kaalukaotuse jälgija'!$C97)),\"\")","v":0}]
[{"$f":"IF((LEN('Kaalukaotuse jälgija'!$C98)=0),TRUE)","v":true},{"$f":"IFERROR(IF(A95,0,IF(LEN('Kaalukaotuse jälgija'!$B98)=0,0,'Kaalukaotuse jälgija'!$B98)),\"\")","v":"00:00:00"},{"$f":"IFERROR(IF(A95,0,IF(LEN('Kaalukaotuse jälgija'!$C98)=0,0,'Kaalukaotuse jälgija'!$C98)),\"\")","v":0}]
[{"$f":"IF((LEN('Kaalukaotuse jälgija'!$C99)=0),TRUE)","v":true},{"$f":"IFERROR(IF(A96,0,IF(LEN('Kaalukaotuse jälgija'!$B99)=0,0,'Kaalukaotuse jälgija'!$B99)),\"\")","v":"00:00:00"},{"$f":"IFERROR(IF(A96,0,IF(LEN('Kaalukaotuse jälgija'!$C99)=0,0,'Kaalukaotuse jälgija'!$C99)),\"\")","v":0}]
[{"$f":"IF((LEN('Kaalukaotuse jälgija'!$C100)=0),TRUE)","v":true},{"$f":"IFERROR(IF(A97,0,IF(LEN('Kaalukaotuse jälgija'!$B100)=0,0,'Kaalukaotuse jälgija'!$B100)),\"\")","v":"00:00:00"},{"$f":"IFERROR(IF(A97,0,IF(LEN('Kaalukaotuse jälgija'!$C100)=0,0,'Kaalukaotuse jälgija'!$C100)),\"\")","v":0}]
[{"$f":"IF((LEN('Kaalukaotuse jälgija'!$C101)=0),TRUE)","v":true},{"$f":"IFERROR(IF(A98,0,IF(LEN('Kaalukaotuse jälgija'!$B101)=0,0,'Kaalukaotuse jälgija'!$B101)),\"\")","v":"00:00:00"},{"$f":"IFERROR(IF(A98,0,IF(LEN('Kaalukaotuse jälgija'!$C101)=0,0,'Kaalukaotuse jälgija'!$C101)),\"\")","v":0}]
[{"$f":"IF((LEN('Kaalukaotuse jälgija'!$C102)=0),TRUE)","v":true},{"$f":"IFERROR(IF(A99,0,IF(LEN('Kaalukaotuse jälgija'!$B102)=0,0,'Kaalukaotuse jälgija'!$B102)),\"\")","v":"00:00:00"},{"$f":"IFERROR(IF(A99,0,IF(LEN('Kaalukaotuse jälgija'!$C102)=0,0,'Kaalukaotuse jälgija'!$C102)),\"\")","v":0}]
[{"$f":"IF((LEN('Kaalukaotuse jälgija'!$C103)=0),TRUE)","v":true},{"$f":"IFERROR(IF(A100,0,IF(LEN('Kaalukaotuse jälgija'!$B103)=0,0,'Kaalukaotuse jälgija'!$B103)),\"\")","v":"00:00:00"},{"$f":"IFERROR(IF(A100,0,IF(LEN('Kaalukaotuse jälgija'!$C103)=0,0,'Kaalukaotuse jälgija'!$C103)),\"\")","v":0}]
[{"$f":"IF((LEN('Kaalukaotuse jälgija'!$C104)=0),TRUE)","v":true},{"$f":"IFERROR(IF(A101,0,IF(LEN('Kaalukaotuse jälgija'!$B104)=0,0,'Kaalukaotuse jälgija'!$B104)),\"\")","v":"00:00:00"},{"$f":"IFERROR(IF(A101,0,IF(LEN('Kaalukaotuse jälgija'!$C104)=0,0,'Kaalukaotuse jälgija'!$C104)),\"\")","v":0}]
[{"$f":"IF((LEN('Kaalukaotuse jälgija'!$C105)=0),TRUE)","v":true},{"$f":"IFERROR(IF(A102,0,IF(LEN('Kaalukaotuse jälgija'!$B105)=0,0,'Kaalukaotuse jälgija'!$B105)),\"\")","v":"00:00:00"},{"$f":"IFERROR(IF(A102,0,IF(LEN('Kaalukaotuse jälgija'!$C105)=0,0,'Kaalukaotuse jälgija'!$C105)),\"\")","v":0}]
[{"$f":"IF((LEN('Kaalukaotuse jälgija'!$C106)=0),TRUE)","v":true},{"$f":"IFERROR(IF(A103,0,IF(LEN('Kaalukaotuse jälgija'!$B106)=0,0,'Kaalukaotuse jälgija'!$B106)),\"\")","v":"00:00:00"},{"$f":"IFERROR(IF(A103,0,IF(LEN('Kaalukaotuse jälgija'!$C106)=0,0,'Kaalukaotuse jälgija'!$C106)),\"\")","v":0}]
[{"$f":"IF((LEN('Kaalukaotuse jälgija'!$C107)=0),TRUE)","v":true},{"$f":"IFERROR(IF(A104,0,IF(LEN('Kaalukaotuse jälgija'!$B107)=0,0,'Kaalukaotuse jälgija'!$B107)),\"\")","v":"00:00:00"},{"$f":"IFERROR(IF(A104,0,IF(LEN('Kaalukaotuse jälgija'!$C107)=0,0,'Kaalukaotuse jälgija'!$C107)),\"\")","v":0}]
[{"$f":"IF((LEN('Kaalukaotuse jälgija'!$C108)=0),TRUE)","v":true},{"$f":"IFERROR(IF(A105,0,IF(LEN('Kaalukaotuse jälgija'!$B108)=0,0,'Kaalukaotuse jälgija'!$B108)),\"\")","v":"00:00:00"},{"$f":"IFERROR(IF(A105,0,IF(LEN('Kaalukaotuse jälgija'!$C108)=0,0,'Kaalukaotuse jälgija'!$C108)),\"\")","v":0}]
[{"$f":"IF((LEN('Kaalukaotuse jälgija'!$C109)=0),TRUE)","v":true},{"$f":"IFERROR(IF(A106,0,IF(LEN('Kaalukaotuse jälgija'!$B109)=0,0,'Kaalukaotuse jälgija'!$B109)),\"\")","v":"00:00:00"},{"$f":"IFERROR(IF(A106,0,IF(LEN('Kaalukaotuse jälgija'!$C109)=0,0,'Kaalukaotuse jälgija'!$C109)),\"\")","v":0}]
[{"$f":"IF((LEN('Kaalukaotuse jälgija'!$C110)=0),TRUE)","v":true},{"$f":"IFERROR(IF(A107,0,IF(LEN('Kaalukaotuse jälgija'!$B110)=0,0,'Kaalukaotuse jälgija'!$B110)),\"\")","v":"00:00:00"},{"$f":"IFERROR(IF(A107,0,IF(LEN('Kaalukaotuse jälgija'!$C110)=0,0,'Kaalukaotuse jälgija'!$C110)),\"\")","v":0}]